[Event "Rapid del Mercoledì"]
[Site "Chess.com"]
[Date "2020.05.27"]
[Round "4"]
[White "fausto2p"]
[Black "caramante"]
[Result "1-0"]
[WhiteElo "1194"]
[BlackElo "1548"]
[TimeControl "720+3"]
[EndTime "13:29:49 PDT"]
[Termination "fausto2p ha vinto per abbandono"]

1. d4 {[%clk 0:12:02.9]} 1... Nf6 {[%clk 0:11:59]} 2. c4 {[%clk 0:12:03]} 2...
g6 {[%clk 0:11:56.9]} 3. Nc3 {[%clk 0:12:04]} 3... Bg7 {[%clk 0:11:58.2]} 4. e4
{[%clk 0:12:05.3]} 4... d6 {[%clk 0:11:59.2]} 5. f3 {[%clk 0:12:06.4]} 5... c6
{[%clk 0:12:01.1]} 6. Be3 {[%clk 0:12:07.6]} 6... O-O {[%clk 0:12:03]} 7. g4
{[%clk 0:11:56.8]} 7... Nbd7 {[%clk 0:11:56.1]} 8. Nge2 {[%clk 0:11:50.7]} 8...
e5 {[%clk 0:11:56.6]} 9. d5 {[%clk 0:11:46.5]} 9... cxd5 {[%clk 0:11:56.2]} 10.
cxd5 {[%clk 0:11:45.3]} 10... a6 {[%clk 0:11:58.1]} 11. Ng3 {[%clk 0:11:10.7]}
11... b5 {[%clk 0:11:58.1]} 12. a3 {[%clk 0:11:07.5]} 12... Nb6 {[%clk
0:11:52.9]} 13. b3 {[%clk 0:10:45.9]} 13... Nbd7 {[%clk 0:11:23.7]} 14. Qd2
{[%clk 0:10:27.9]} 14... Bb7 {[%clk 0:11:20]} 15. b4 {[%clk 0:10:12.6]} 15...
Nb6 {[%clk 0:11:18.7]} 16. Be2 {[%clk 0:09:52.3]} 16... Nc4 {[%clk 0:11:13.6]}
17. Bxc4 {[%clk 0:09:49.9]} 17... bxc4 {[%clk 0:11:13.3]} 18. h4 {[%clk
0:09:31.5]} 18... a5 {[%clk 0:10:23.1]} 19. b5 {[%clk 0:09:11.3]} 19... a4
{[%clk 0:10:09.1]} 20. h5 {[%clk 0:08:38.4]} 20... Qd7 {[%clk 0:09:30.2]} 21.
Nf5 {[%clk 0:08:07.2]} 21... gxf5 {[%clk 0:09:23.4]} 22. gxf5 {[%clk 0:07:59.6]}
22... Bxd5 {[%clk 0:09:03.4]} 23. Nxd5 {[%clk 0:07:35.5]} 23... Nxd5 {[%clk
0:09:01.9]} 24. Qxd5 {[%clk 0:07:29.6]} 24... Ra5 {[%clk 0:09:00.4]} 25. h6
{[%clk 0:07:20.7]} 25... Bf6 {[%clk 0:08:52.5]} 26. Rg1+ {[%clk 0:07:12.7]}
26... Kh8 {[%clk 0:08:54.1]} 27. Rb1 {[%clk 0:06:58.4]} 27... Rg8 {[%clk
0:08:39.2]} 28. Rxg8+ {[%clk 0:06:35.3]} 28... Kxg8 {[%clk 0:08:39.2]} 29. Ke2
{[%clk 0:06:24.3]} 29... Kh8 {[%clk 0:08:34.9]} 30. Qxc4 {[%clk 0:06:02.9]}
30... Ra8 {[%clk 0:08:29.1]} 31. Rc1 {[%clk 0:05:20.2]} 31... Rg8 {[%clk
0:08:08]} 32. Qxa4 {[%clk 0:04:57]} 32... d5 {[%clk 0:08:01.2]} 33. Qa6 {[%clk
0:04:23.3]} 33... Bg5 {[%clk 0:07:25.4]} 34. Bxg5 {[%clk 0:04:16.4]} 34... Rxg5
{[%clk 0:07:25.7]} 35. Qf6+ {[%clk 0:04:16.1]} 1-0

[Event "Rapid del Mercoledì"]
[Site "Chess.com"]
[Date "2020.05.27"]
[Round "4"]
[White "Mrtre7"]
[Black "pedrak"]
[Result "0-1"]
[WhiteElo "1454"]
[BlackElo "1687"]
[TimeControl "720+3"]
[EndTime "13:31:59 PDT"]
[Termination "pedrak ha vinto per abbandono"]

1. d4 {[%clk 0:11:45.6]} 1... d5 {[%clk 0:11:56.5]} 2. c4 {[%clk 0:11:42.1]}
2... e6 {[%clk 0:11:56.5]} 3. Nc3 {[%clk 0:11:38.4]} 3... Nf6 {[%clk 0:11:56.6]}
4. cxd5 {[%clk 0:11:35.9]} 4... exd5 {[%clk 0:11:57.5]} 5. Bg5 {[%clk
0:11:37.6]} 5... Be7 {[%clk 0:11:56.2]} 6. e3 {[%clk 0:11:38.4]} 6... O-O {[%clk
0:11:57.2]} 7. Bd3 {[%clk 0:11:38.9]} 7... c6 {[%clk 0:11:47.9]} 8. Nge2 {[%clk
0:11:37.1]} 8... Bg4 {[%clk 0:11:43.2]} 9. f3 {[%clk 0:11:32.5]} 9... Bh5 {[%clk
0:11:44]} 10. O-O {[%clk 0:11:26.7]} 10... Bg6 {[%clk 0:11:45.1]} 11. Bxg6
{[%clk 0:09:42.8]} 11... hxg6 {[%clk 0:11:45.4]} 12. e4 {[%clk 0:09:44.4]} 12...
Re8 {[%clk 0:11:33.8]} 13. e5 {[%clk 0:09:10.9]} 13... Nh7 {[%clk 0:11:12.5]}
14. Bxe7 {[%clk 0:09:09.6]} 14... Qxe7 {[%clk 0:11:13.5]} 15. f4 {[%clk
0:09:10]} 15... Qe6 {[%clk 0:11:01.4]} 16. Ng3 {[%clk 0:08:46.2]} 16... Nd7
{[%clk 0:10:55.9]} 17. Qf3 {[%clk 0:08:03.5]} 17... Nb6 {[%clk 0:10:37.6]} 18.
f5 {[%clk 0:08:04.3]} 18... gxf5 {[%clk 0:10:38.2]} 19. Nxf5 {[%clk 0:08:03.3]}
19... Qg6 {[%clk 0:10:07.4]} 20. Nd6 {[%clk 0:07:53.2]} 20... Re7 {[%clk
0:10:08.3]} 21. Ne2 {[%clk 0:07:24.9]} 21... Ng5 {[%clk 0:10:08.4]} 22. Qg4
{[%clk 0:05:26.3]} 22... Nc4 {[%clk 0:08:51.9]} 23. Nf4 {[%clk 0:04:43.9]} 23...
Qh6 {[%clk 0:08:38.1]} 24. Nf5 {[%clk 0:04:43.5]} 24... Ne3 {[%clk 0:08:16.6]}
25. Nxh6+ {[%clk 0:04:17.1]} 25... gxh6 {[%clk 0:08:14.2]} 26. Qh4 {[%clk
0:03:51.7]} 26... Nxf1 {[%clk 0:08:12.1]} 27. Rxf1 {[%clk 0:03:52.5]} 27... Kg7
{[%clk 0:08:09.8]} 28. Nh5+ {[%clk 0:03:53.2]} 28... Kh7 {[%clk 0:08:07.6]} 29.
Rf6 {[%clk 0:03:46.1]} 29... Rg8 {[%clk 0:08:05.2]} 30. Nf4 {[%clk 0:03:36.1]}
30... Nf3+ {[%clk 0:08:03.9]} 31. Kf1 {[%clk 0:02:17.9]} 31... Nxh4 {[%clk
0:08:04.7]} 32. g3 {[%clk 0:02:16.1]} 32... Ng6 {[%clk 0:08:04.5]} 0-1

[Event "Rapid del Mercoledì"]
[Site "Chess.com"]
[Date "2020.05.27"]
[Round "4"]
[White "mr6701"]
[Black "Carbon"]
[Result "1-0"]
[WhiteElo "1817"]
[BlackElo "1756"]
[TimeControl "720+3"]
[EndTime "13:39:44 PDT"]
[Termination "mr6701 ha vinto per abbandono"]

1. e4 {[%clk 0:12:02.9]} 1... c5 {[%clk 0:11:59.9]} 2. d4 {[%clk 0:12:05.3]}
2... cxd4 {[%clk 0:12:00.8]} 3. c3 {[%clk 0:12:07.9]} 3... d3 {[%clk 0:12:01.4]}
4. Bxd3 {[%clk 0:12:08.9]} 4... Nc6 {[%clk 0:11:55.7]} 5. Nf3 {[%clk 0:12:11.8]}
5... d6 {[%clk 0:11:54.4]} 6. O-O {[%clk 0:12:06.8]} 6... g6 {[%clk 0:11:55.9]}
7. Bg5 {[%clk 0:12:05.9]} 7... Bg7 {[%clk 0:11:36.2]} 8. Nbd2 {[%clk 0:12:00.4]}
8... Nf6 {[%clk 0:11:35.5]} 9. Qb3 {[%clk 0:11:55.4]} 9... O-O {[%clk
0:11:29.7]} 10. Rad1 {[%clk 0:11:45.9]} 10... Qc7 {[%clk 0:11:09.5]} 11. h3
{[%clk 0:11:40.2]} 11... Be6 {[%clk 0:11:00.7]} 12. Qc2 {[%clk 0:11:38.2]} 12...
d5 {[%clk 0:10:52.4]} 13. exd5 {[%clk 0:11:16]} 13... Nxd5 {[%clk 0:10:53]} 14.
Ne4 {[%clk 0:10:55.2]} 14... Nf4 {[%clk 0:10:24.3]} 15. Nd4 {[%clk 0:10:06.3]}
15... Bd5 {[%clk 0:08:28.9]} 16. Nb5 {[%clk 0:09:23.9]} 16... Qb8 {[%clk
0:07:50.4]} 17. c4 {[%clk 0:08:03.9]} 17... Be6 {[%clk 0:07:20.4]} 18. Nc5
{[%clk 0:07:42.5]} 18... a6 {[%clk 0:06:48.6]} 19. Nc3 {[%clk 0:07:21.4]} 19...
Nb4 {[%clk 0:06:06.3]} 20. Bxf4 {[%clk 0:07:22.7]} 20... Qxf4 {[%clk 0:05:52.4]}
21. Qb3 {[%clk 0:07:10.8]} 21... Nxd3 {[%clk 0:05:31.9]} 22. Nxe6 {[%clk
0:07:06.7]} 22... fxe6 {[%clk 0:05:22.6]} 23. Rxd3 {[%clk 0:07:08]} 23... Bd4
{[%clk 0:04:57.3]} 24. Rf3 {[%clk 0:06:52.2]} 24... Qc7 {[%clk 0:04:54.8]} 25.
Rd3 {[%clk 0:06:19.5]} 25... Rad8 {[%clk 0:04:04.3]} 26. Ne2 {[%clk 0:06:19.3]}
26... Bc5 {[%clk 0:03:50.2]} 27. Rxd8 {[%clk 0:06:11.3]} 27... Rxd8 {[%clk
0:03:48.2]} 28. Qc3 {[%clk 0:05:54.6]} 28... Rf8 {[%clk 0:03:38.2]} 29. b4
{[%clk 0:05:52.6]} 29... Ba7 {[%clk 0:03:28.6]} 30. c5 {[%clk 0:05:48.6]} 30...
Bb8 {[%clk 0:03:29.9]} 31. g3 {[%clk 0:05:44.4]} 31... Qe5 {[%clk 0:03:29.8]}
32. Qc4 {[%clk 0:05:43.5]} 32... Qd5 {[%clk 0:03:21.2]} 33. Qc2 {[%clk
0:05:39.9]} 33... Rf3 {[%clk 0:03:15.4]} 34. Rd1 {[%clk 0:05:34.9]} 34... Qh5
{[%clk 0:02:56.6]} 35. Rd8+ {[%clk 0:05:24.4]} 35... Rf8 {[%clk 0:02:58.2]} 36.
Qd3 {[%clk 0:04:58]} 36... Qf5 {[%clk 0:02:41.2]} 37. Rxf8+ {[%clk 0:04:52.2]}
37... Qxf8 {[%clk 0:02:42.9]} 38. Qc4 {[%clk 0:04:49.3]} 38... Qc8 {[%clk
0:02:37.7]} 39. Nd4 {[%clk 0:04:49]} 39... Kf7 {[%clk 0:02:38.9]} 40. a4 {[%clk
0:04:50.6]} 40... Be5 {[%clk 0:02:38.8]} 41. Nf3 {[%clk 0:04:48.7]} 41... Bf6
{[%clk 0:02:38.8]} 42. g4 {[%clk 0:04:50.2]} 42... Qd7 {[%clk 0:02:29.5]} 43. g5
{[%clk 0:04:35.9]} 43... Bg7 {[%clk 0:02:31]} 44. Qf4+ {[%clk 0:04:33]} 44...
Ke8 {[%clk 0:02:31.6]} 45. Ne5 {[%clk 0:04:09.4]} 45... Qd1+ {[%clk 0:02:12.3]}
46. Kh2 {[%clk 0:04:05.2]} 46... Bxe5 {[%clk 0:01:53]} 47. Qxe5 {[%clk 0:04:07]}
47... Qxa4 {[%clk 0:01:49.8]} 48. Qb8+ {[%clk 0:04:03.2]} 48... Kf7 {[%clk
0:01:48]} 49. Qxb7 {[%clk 0:04:06.1]} 49... Qc2 {[%clk 0:01:34.1]} 50. Kg2
{[%clk 0:03:54.2]} 50... a5 {[%clk 0:01:19.9]} 51. bxa5 {[%clk 0:03:51.5]} 51...
Qxc5 {[%clk 0:01:17.4]} 52. a6 {[%clk 0:03:53.8]} 52... Qxg5+ {[%clk 0:01:15.8]}
53. Kh2 {[%clk 0:03:45.9]} 53... Qf4+ {[%clk 0:01:09.1]} 54. Kh1 {[%clk
0:03:42.1]} 54... Qh4 {[%clk 0:00:56.3]} 55. Qf3+ {[%clk 0:03:34.7]} 55... Kg7
{[%clk 0:00:55.8]} 56. a7 {[%clk 0:03:35.3]} 56... Qc4 {[%clk 0:00:44.4]} 57.
a8=Q {[%clk 0:03:29.2]} 1-0

[Event "Rapid del Mercoledì"]
[Site "Chess.com"]
[Date "2020.05.27"]
[Round "5"]
[White "pedrak"]
[Black "SanSecondoPR"]
[Result "1-0"]
[WhiteElo "1689"]
[BlackElo "1318"]
[TimeControl "720+3"]
[EndTime "13:46:11 PDT"]
[Termination "pedrak ha vinto per ritiro dell'avversario"]

1. d4 {[%clk 0:12:02.9]} 1... d5 {[%clk 0:11:54.7]} 2. Nf3 {[%clk 0:12:03.2]}
2... Nc6 {[%clk 0:11:46.8]} 3. Bf4 {[%clk 0:11:52.4]} 3... Bg4 {[%clk 0:11:39]}
4. Nbd2 {[%clk 0:11:42]} 4... Nf6 {[%clk 0:11:35.8]} 5. c3 {[%clk 0:11:38.2]}
5... Ne4 {[%clk 0:11:35.3]} 6. Qc2 {[%clk 0:11:36.1]} 6... Bf5 {[%clk 0:11:31]}
7. Qb3 {[%clk 0:11:32.4]} 7... Rb8 {[%clk 0:11:20.4]} 8. e3 {[%clk 0:11:33.2]}
8... e6 {[%clk 0:11:03]} 9. Bb5 {[%clk 0:11:31.4]} 9... g5 {[%clk 0:10:43.6]}
10. Bg3 {[%clk 0:11:27.5]} 10... Rc8 {[%clk 0:10:10.6]} 11. Ne5 {[%clk
0:11:24.6]} 11... Nxd2 {[%clk 0:09:56.7]} 12. Kxd2 {[%clk 0:11:21.6]} 12... Qf6
{[%clk 0:08:57.2]} 13. Nxc6 {[%clk 0:11:18.6]} 13... bxc6 {[%clk 0:08:54.3]} 14.
Bxc6+ {[%clk 0:11:19.4]} 14... Kd8 {[%clk 0:08:43.5]} 15. Be5 {[%clk 0:11:19.2]}
1-0

[Event "Rapid del Mercoledì"]
[Site "Chess.com"]
[Date "2020.05.27"]
[Round "5"]
[White "caramante"]
[Black "mr6701"]
[Result "0-1"]
[WhiteElo "1544"]
[BlackElo "1827"]
[TimeControl "720+3"]
[EndTime "13:56:58 PDT"]
[Termination "mr6701 ha vinto per abbandono"]

1. Nf3 {[%clk 0:12:02.9]} 1... d5 {[%clk 0:12:01.7]} 2. d4 {[%clk 0:12:02]} 2...
e6 {[%clk 0:12:03]} 3. g3 {[%clk 0:12:03.6]} 3... Nf6 {[%clk 0:12:05]} 4. Bg5
{[%clk 0:12:03.3]} 4... Be7 {[%clk 0:12:06.7]} 5. c3 {[%clk 0:12:04.7]} 5... h6
{[%clk 0:12:08.5]} 6. Bxf6 {[%clk 0:12:03.7]} 6... Bxf6 {[%clk 0:12:10.2]} 7.
Bg2 {[%clk 0:12:05.6]} 7... O-O {[%clk 0:12:11.6]} 8. O-O {[%clk 0:12:06.8]}
8... Nd7 {[%clk 0:12:13.4]} 9. Nbd2 {[%clk 0:12:08.7]} 9... c5 {[%clk
0:12:15.2]} 10. e4 {[%clk 0:12:08.7]} 10... cxd4 {[%clk 0:12:04.9]} 11. cxd4
{[%clk 0:12:08.5]} 11... dxe4 {[%clk 0:12:04.6]} 12. Nxe4 {[%clk 0:12:09.3]}
12... Be7 {[%clk 0:12:06.1]} 13. Re1 {[%clk 0:12:03.5]} 13... Nf6 {[%clk
0:12:05.2]} 14. Nc5 {[%clk 0:11:48.9]} 14... Qb6 {[%clk 0:11:50.9]} 15. Qc2
{[%clk 0:11:26.9]} 15... Bd7 {[%clk 0:11:10.4]} 16. a3 {[%clk 0:11:04.7]} 16...
Bc6 {[%clk 0:11:05.7]} 17. b4 {[%clk 0:11:02.9]} 17... Rad8 {[%clk 0:10:51.8]}
18. Rad1 {[%clk 0:10:57.9]} 18... a5 {[%clk 0:10:32.4]} 19. Ne5 {[%clk
0:10:47.4]} 19... Bxg2 {[%clk 0:10:27.4]} 20. Kxg2 {[%clk 0:10:46.7]} 20... axb4
{[%clk 0:10:25]} 21. axb4 {[%clk 0:10:38.4]} 21... Qxb4 {[%clk 0:10:13]} 22. Nb3
{[%clk 0:09:41.6]} 22... Rc8 {[%clk 0:09:39.3]} 23. Qb1 {[%clk 0:09:32.9]} 23...
Rfd8 {[%clk 0:09:27.7]} 24. Rc1 {[%clk 0:08:58]} 24... Nd5 {[%clk 0:08:48.7]}
25. Qd3 {[%clk 0:08:09.9]} 25... Bg5 {[%clk 0:07:59.5]} 26. f4 {[%clk
0:07:49.9]} 26... Bf6 {[%clk 0:08:01.2]} 27. Nc5 {[%clk 0:07:36.8]} 27... Rxc5
{[%clk 0:07:23.9]} 28. dxc5 {[%clk 0:07:27.3]} 28... Bxe5 {[%clk 0:06:50.7]} 29.
Kh1 {[%clk 0:06:52]} 29... Bf6 {[%clk 0:06:29]} 30. Re4 {[%clk 0:06:40.6]} 30...
Qb2 {[%clk 0:06:19.1]} 31. Rce1 {[%clk 0:06:34.4]} 31... Nxf4 {[%clk 0:06:12.2]}
32. Qf3 {[%clk 0:06:27.1]} 32... Nd5 {[%clk 0:06:02.6]} 33. R1e2 {[%clk
0:06:15.4]} 33... Qc3 {[%clk 0:06:00.3]} 34. Qg4 {[%clk 0:06:10.9]} 34... Qxc5
{[%clk 0:05:54.7]} 35. h4 {[%clk 0:05:59.2]} 35... Nc3 {[%clk 0:05:44.6]} 36.
Rc2 {[%clk 0:05:36.8]} 36... Qd5 {[%clk 0:05:40.3]} 0-1

[Event "Rapid del Mercoledì"]
[Site "Chess.com"]
[Date "2020.05.27"]
[Round "5"]
[White "sergiodone"]
[Black "malberici"]
[Result "1-0"]
[WhiteElo "1435"]
[BlackElo "1394"]
[TimeControl "720+3"]
[EndTime "14:01:05 PDT"]
[Termination "sergiodone ha vinto per abbandono"]

1. e4 {[%clk 0:11:10.3]} 1... Nf6 {[%clk 0:12:00.6]} 2. e5 {[%clk 0:11:07.7]}
2... Nd5 {[%clk 0:12:01.4]} 3. c4 {[%clk 0:11:08.8]} 3... Nb6 {[%clk 0:12:01.7]}
4. c5 {[%clk 0:11:10.7]} 4... Nd5 {[%clk 0:12:02.7]} 5. d4 {[%clk 0:11:12.5]}
5... d6 {[%clk 0:12:01.2]} 6. Nc3 {[%clk 0:11:13.2]} 6... e6 {[%clk 0:12:01.7]}
7. cxd6 {[%clk 0:11:09.6]} 7... cxd6 {[%clk 0:12:01.6]} 8. Nxd5 {[%clk
0:11:08.7]} 8... exd5 {[%clk 0:12:02.5]} 9. Nf3 {[%clk 0:11:02.3]} 9... Bg4
{[%clk 0:11:56.8]} 10. Bf4 {[%clk 0:10:47.5]} 10... Nc6 {[%clk 0:11:40.5]} 11.
Bb5 {[%clk 0:10:44.4]} 11... Be7 {[%clk 0:11:37.3]} 12. Bxc6+ {[%clk 0:10:45.2]}
12... bxc6 {[%clk 0:11:38.2]} 13. O-O {[%clk 0:10:39.2]} 13... O-O {[%clk
0:11:38.2]} 14. Re1 {[%clk 0:10:26.7]} 14... dxe5 {[%clk 0:11:28.9]} 15. dxe5
{[%clk 0:10:26.5]} 15... Bb4 {[%clk 0:10:55.9]} 16. Rf1 {[%clk 0:10:20.7]} 16...
Qe7 {[%clk 0:10:11.9]} 17. a3 {[%clk 0:10:17.5]} 17... Ba5 {[%clk 0:10:06.3]}
18. b4 {[%clk 0:10:01.2]} 18... Bc7 {[%clk 0:10:04.1]} 19. Re1 {[%clk
0:09:56.8]} 19... h6 {[%clk 0:09:58.8]} 20. Rc1 {[%clk 0:09:50.3]} 20... Qe6
{[%clk 0:09:25.5]} 21. b5 {[%clk 0:09:47.7]} 21... Ba5 {[%clk 0:09:14.1]} 22.
Rxc6 {[%clk 0:09:47.1]} 22... Qf5 {[%clk 0:09:06]} 23. Rf1 {[%clk 0:09:48.1]}
23... g5 {[%clk 0:08:54.3]} 24. Rf6 {[%clk 0:09:30]} 24... Qd7 {[%clk
0:08:07.4]} 25. Bg3 {[%clk 0:09:25.4]} 25... Rae8 {[%clk 0:07:52.4]} 26. Qd4
{[%clk 0:09:23]} 26... Bb6 {[%clk 0:07:33.3]} 27. Qd3 {[%clk 0:09:23.7]} 27...
Bxf3 {[%clk 0:07:23]} 28. Qxf3 {[%clk 0:09:22.1]} 28... Re6 {[%clk 0:07:00.7]}
29. Qh5 {[%clk 0:09:13.1]} 29... Rxf6 {[%clk 0:06:47.5]} 30. exf6 {[%clk
0:09:13.4]} 30... Qf5 {[%clk 0:06:34.1]} 31. Qxh6 {[%clk 0:09:14.4]} 31... Qg6
{[%clk 0:06:34.5]} 32. Qxg6+ {[%clk 0:08:46.2]} 32... fxg6 {[%clk 0:06:35.3]}
33. Be5 {[%clk 0:08:47.2]} 33... Bd8 {[%clk 0:06:31.1]} 34. Rd1 {[%clk
0:08:46.3]} 34... Bxf6 {[%clk 0:06:24.4]} 35. Bxf6 {[%clk 0:08:45.1]} 35... Rxf6
{[%clk 0:06:25.2]} 36. Rxd5 {[%clk 0:08:46.6]} 36... Re6 {[%clk 0:06:21.8]} 37.
f3 {[%clk 0:08:47.6]} 37... Kf7 {[%clk 0:06:20.9]} 38. a4 {[%clk 0:08:48.4]}
38... Re1+ {[%clk 0:06:13.2]} 39. Kf2 {[%clk 0:08:49.4]} 39... Re7 {[%clk
0:06:09]} 40. a5 {[%clk 0:08:42.3]} 40... Ke6 {[%clk 0:06:08.7]} 41. Rc5 {[%clk
0:08:44]} 41... Rb7 {[%clk 0:06:02.3]} 42. g3 {[%clk 0:08:30]} 42... Rd7 {[%clk
0:05:48.3]} 43. Ke2 {[%clk 0:08:30.7]} 43... Re7 {[%clk 0:05:38.4]} 44. Kd3
{[%clk 0:08:30.9]} 44... Rd7+ {[%clk 0:05:33.3]} 45. Ke2 {[%clk 0:08:25.7]}
45... Re7 {[%clk 0:05:32.7]} 46. Kf2 {[%clk 0:08:27.5]} 46... Rd7 {[%clk
0:05:18.8]} 47. h4 {[%clk 0:08:20.9]} 47... gxh4 {[%clk 0:05:12.6]} 48. gxh4
{[%clk 0:08:22.3]} 48... Kf6 {[%clk 0:05:00]} 49. b6 {[%clk 0:08:14.3]} 49...
axb6 {[%clk 0:04:53.3]} 50. axb6 {[%clk 0:08:14.9]} 50... Rb7 {[%clk 0:04:53.8]}
51. Rc6+ {[%clk 0:08:15.1]} 51... Kf5 {[%clk 0:04:52.4]} 52. Kg3 {[%clk
0:08:15.4]} 52... g5 {[%clk 0:04:42.9]} 53. hxg5 {[%clk 0:08:16.5]} 53... Kxg5
{[%clk 0:04:42.9]} 54. f4+ {[%clk 0:08:17.7]} 54... Kf5 {[%clk 0:04:39.1]} 55.
Kf3 {[%clk 0:08:19.4]} 55... Rb8 {[%clk 0:04:28.8]} 56. Kg3 {[%clk 0:08:08.8]}
56... Rg8+ {[%clk 0:04:24.3]} 57. Kf3 {[%clk 0:08:10.1]} 57... Rb8 {[%clk
0:04:22.6]} 58. Rd6 {[%clk 0:08:09]} 58... Rb7 {[%clk 0:04:21.2]} 59. Rh6 {[%clk
0:08:05.5]} 59... Rb8 {[%clk 0:04:19.4]} 60. Ke3 {[%clk 0:07:49.9]} 60... Re8+
{[%clk 0:04:10.9]} 61. Kd4 {[%clk 0:07:50.7]} 61... Kxf4 {[%clk 0:04:08.4]} 62.
Kc5 {[%clk 0:07:51.6]} 62... Kg5 {[%clk 0:04:02.2]} 63. Rd6 {[%clk 0:07:51.3]}
63... Kf5 {[%clk 0:03:57.4]} 64. b7 {[%clk 0:07:52]} 64... Ke5 {[%clk
0:03:55.4]} 65. Rh6 {[%clk 0:07:51.9]} 65... Rb8 {[%clk 0:03:52.1]} 66. Kb6
{[%clk 0:07:53.7]} 66... Kd5 {[%clk 0:03:47.2]} 67. Kc7 {[%clk 0:07:55.3]} 67...
Rg8 {[%clk 0:03:18.8]} 68. b8=Q {[%clk 0:07:51]} 68... Rg7+ {[%clk 0:03:11.8]}
69. Kb6 {[%clk 0:07:27.4]} 1-0

[Event "Rapid del Mercoledì"]
[Site "Chess.com"]
[Date "2020.05.27"]
[Round "5"]
[White "Carbon"]
[Black "sirmale49"]
[Result "1-0"]
[WhiteElo "1758"]
[BlackElo "1378"]
[TimeControl "720+3"]
[EndTime "14:05:26 PDT"]
[Termination "Carbon ha vinto per tempo"]

1. e4 {[%clk 0:12:00.8]} 1... e5 {[%clk 0:11:57]} 2. Nf3 {[%clk 0:12:02.1]} 2...
Nc6 {[%clk 0:11:58.7]} 3. Bb5 {[%clk 0:12:00.5]} 3... d6 {[%clk 0:11:59.3]} 4.
c3 {[%clk 0:11:59.5]} 4... Nf6 {[%clk 0:12:00.7]} 5. d3 {[%clk 0:11:58.9]} 5...
Bd7 {[%clk 0:12:00.4]} 6. O-O {[%clk 0:11:59.2]} 6... Be7 {[%clk 0:12:00.9]} 7.
Re1 {[%clk 0:11:57.4]} 7... O-O {[%clk 0:12:01.8]} 8. d4 {[%clk 0:11:58.5]} 8...
a6 {[%clk 0:11:47.2]} 9. Bc4 {[%clk 0:11:15.1]} 9... Na5 {[%clk 0:11:16.8]} 10.
Bd3 {[%clk 0:11:06.6]} 10... exd4 {[%clk 0:10:37.5]} 11. cxd4 {[%clk 0:11:05.2]}
11... Re8 {[%clk 0:10:23.4]} 12. Nc3 {[%clk 0:10:53.1]} 12... Bg4 {[%clk
0:10:10.7]} 13. h3 {[%clk 0:10:32.6]} 13... Bh5 {[%clk 0:10:04.6]} 14. d5 {[%clk
0:10:08.7]} 14... Nd7 {[%clk 0:09:39.9]} 15. b4 {[%clk 0:10:02]} 15... Ne5
{[%clk 0:09:32.5]} 16. bxa5 {[%clk 0:09:55.2]} 16... Bxf3 {[%clk 0:09:23.6]} 17.
gxf3 {[%clk 0:09:53.9]} 17... Bh4 {[%clk 0:09:19.5]} 18. f4 {[%clk 0:09:26.6]}
18... Nxd3 {[%clk 0:08:23.2]} 19. Qxd3 {[%clk 0:09:25]} 19... Qf6 {[%clk
0:08:24]} 20. Be3 {[%clk 0:08:56.7]} 20... Qg6+ {[%clk 0:07:41.4]} 21. Kh2
{[%clk 0:08:47.4]} 21... Bf6 {[%clk 0:06:06]} 22. Bd4 {[%clk 0:08:23.1]} 22...
Bxd4 {[%clk 0:05:13]} 23. Qxd4 {[%clk 0:08:23.6]} 23... Rac8 {[%clk 0:05:01.9]}
24. Rg1 {[%clk 0:08:12.5]} 24... Qh6 {[%clk 0:04:59.9]} 25. e5 {[%clk
0:07:22.3]} 25... c5 {[%clk 0:04:28.4]} 26. Qe4 {[%clk 0:06:37.8]} 26... dxe5
{[%clk 0:04:13.5]} 27. fxe5 {[%clk 0:06:23.1]} 27... g6 {[%clk 0:03:42.1]} 28.
d6 {[%clk 0:05:53]} 28... Rcd8 {[%clk 0:03:15.7]} 29. Rad1 {[%clk 0:05:25.7]}
29... Qg7 {[%clk 0:02:51.9]} 30. f4 {[%clk 0:04:45.6]} 30... f5 {[%clk 0:02:45]}
31. Qf3 {[%clk 0:04:21.9]} 31... Re6 {[%clk 0:02:06.2]} 32. Nd5 {[%clk
0:04:13.2]} 32... Rd7 {[%clk 0:01:58.9]} 33. Nb6 {[%clk 0:03:43.9]} 33... Rd8
{[%clk 0:01:44.1]} 34. Qd5 {[%clk 0:03:38.3]} 34... Qf7 {[%clk 0:01:20.1]} 35.
Rc1 {[%clk 0:03:10.6]} 35... Ree8 {[%clk 0:01:02.7]} 36. Qxf7+ {[%clk
0:03:07.5]} 36... Kxf7 {[%clk 0:01:03.4]} 37. Rxc5 {[%clk 0:03:08]} 37... Ke6
{[%clk 0:00:54.9]} 38. Rc7 {[%clk 0:03:03.3]} 38... h6 {[%clk 0:00:24.2]} 39.
Rgc1 {[%clk 0:03:04]} 39... g5 {[%clk 0:00:12.7]} 40. Kg3 {[%clk 0:03:00.4]} 1-0

[Event "Rapid del Mercoledì"]
[Site "Chess.com"]
[Date "2020.05.27"]
[Round "5"]
[White "fausto2p"]
[Black "Mrtre7"]
[Result "0-1"]
[WhiteElo "1190"]
[BlackElo "1457"]
[TimeControl "720+3"]
[EndTime "14:07:07 PDT"]
[Termination "Mrtre7 ha vinto per tempo"]

1. d4 {[%clk 0:12:01.9]} 1... d5 {[%clk 0:11:59.8]} 2. c4 {[%clk 0:12:02.3]}
2... c6 {[%clk 0:11:59.7]} 3. Nf3 {[%clk 0:11:55.2]} 3... e6 {[%clk 0:11:59]} 4.
Nc3 {[%clk 0:11:55.7]} 4... dxc4 {[%clk 0:11:58.9]} 5. a4 {[%clk 0:11:55.9]}
5... Bb4 {[%clk 0:11:58.5]} 6. e3 {[%clk 0:11:45.2]} 6... b5 {[%clk 0:11:28.9]}
7. axb5 {[%clk 0:11:43.5]} 7... cxb5 {[%clk 0:11:28.1]} 8. Be2 {[%clk
0:11:24.3]} 8... Nf6 {[%clk 0:11:25.4]} 9. O-O {[%clk 0:11:25.2]} 9... Nc6
{[%clk 0:11:13.1]} 10. Nxb5 {[%clk 0:11:19.6]} 10... a6 {[%clk 0:09:59.9]} 11.
Bxc4 {[%clk 0:11:05.6]} 11... Bb7 {[%clk 0:09:46.5]} 12. Nc3 {[%clk 0:10:33]}
12... O-O {[%clk 0:09:47.6]} 13. Na2 {[%clk 0:09:54.7]} 13... Bd6 {[%clk
0:09:48.4]} 14. Nc3 {[%clk 0:09:42.9]} 14... Rc8 {[%clk 0:09:46.4]} 15. b3
{[%clk 0:09:16]} 15... a5 {[%clk 0:09:42.1]} 16. Nb5 {[%clk 0:08:27.3]} 16...
Bb4 {[%clk 0:09:04.5]} 17. Bb2 {[%clk 0:07:34.2]} 17... Nd5 {[%clk 0:08:33.4]}
18. Qd3 {[%clk 0:07:09.5]} 18... Qf6 {[%clk 0:06:01.4]} 19. Nd6 {[%clk
0:06:46.1]} 19... Bxd6 {[%clk 0:05:47.6]} 20. Bb5 {[%clk 0:06:13.2]} 20... Ncb4
{[%clk 0:05:25.7]} 21. Qe4 {[%clk 0:05:53]} 21... Ba6 {[%clk 0:03:59.5]} 22.
Bxa6 {[%clk 0:05:31.5]} 22... Nxa6 {[%clk 0:04:01.1]} 23. Rxa5 {[%clk
0:05:32.5]} 23... Nac7 {[%clk 0:03:49.6]} 24. Ra6 {[%clk 0:04:47.2]} 24... Be7
{[%clk 0:03:03.1]} 25. Ne5 {[%clk 0:04:25.1]} 25... Rfd8 {[%clk 0:02:30.2]} 26.
Ra7 {[%clk 0:03:50.9]} 26... Bd6 {[%clk 0:02:14.9]} 27. Nc6 {[%clk 0:03:27.2]}
27... Rd7 {[%clk 0:02:16.3]} 28. Rc1 {[%clk 0:02:11]} 28... Nb4 {[%clk
0:01:17.9]} 29. Ne5 {[%clk 0:01:20.6]} 29... Bxe5 {[%clk 0:01:05.1]} 30. dxe5
{[%clk 0:01:14.1]} 30... Qe7 {[%clk 0:01:05.9]} 31. h3 {[%clk 0:01:01.8]} 31...
Nd3 {[%clk 0:01:06.3]} 32. Ba3 {[%clk 0:00:54.6]} 32... Qd8 {[%clk 0:00:59.5]}
33. Rc4 {[%clk 0:00:20.4]} 33... Nb5 {[%clk 0:00:56.9]} 34. Rxd7 {[%clk
0:00:17.7]} 34... Qe8 {[%clk 0:00:47.1]} 35. Rxd3 {[%clk 0:00:08.3]} 35... Nxa3
{[%clk 0:00:48.5]} 36. Rxc8 {[%clk 0:00:05.6]} 36... Qxc8 {[%clk 0:00:50]} 0-1